Workbook

Sheet Sheet1
B2: Enter tariffs here then go to page 2.
B4: Tariff A | F4: Tariff B | J4: Tariff C | N4: Tariff D
B6: Electricity Standing Charge: | C6: 10.96 | F6: ESC: | G6: 15 | J6: ESC: | K6: 12.96 | N6: ESC: | O6: 13.96
B7: Gas Standing Charge: | C7: 27.4 | F7: GSC: | G7: 27.4 | J7: GSC: | K7: 27.4 | N7: GSC: | O7: 27.4
B9: Electricity Rate: | C9: 16.36 | F9: ER: | G9: 16.36 | J9: ER: | K9: 16.36 | N9: ER: | O9: 16.36
B10: Gas Rate: | C10: 4.427 | F10: GR: | G10: 4.427 | J10: GR: | K10: 4.427 | N10: GR: | O10: 4.427
B12: Calorific Value: | C12: 39.8 | F12: CV: | G12: 39.8 | J12: CV: | K12: 39.8 | N12: CV: | O12: 39.8
B13: Correction Factor: | C13: 1.02264 | F13: CF: | G13: 1.02264 | J13: CF: | K13: 1.02264 | N13: CF: | O13: 1.02264
B14: kWh conversion factor: | C14: 3.6 | F14: kCF: | G14: 3.6 | J14: kCF: | K14: 3.6 | N14: kCF: | O14: 3.6
B15: CVxCF/kWhCF = GKWHC | C15: =CVA*CFA/KCFA -> 11.30585333 | F15: GKWHC | G15: =CVB*CFB/KCFB -> 11.30585333 | J15: GKWHC | K15: =CVC*CFC/KCFC -> 11.30585333 | N15: GKWHC | O15: =CVD*CFD/KCFD -> 11.30585333
B19: VAT Rate: | C19: 0.05 | G19: Notes
G21: 1. If you enter your current tariff in, say, Tariff A, you can then get estimates for your monthly bills and compare them with other tariffs.
G23: 2. Compared to an actual bill there are likely to be some rounding errors of a few pence. I might be wrong but I think this is due to rounding errors by the power companies.
G26: 3. The pages are protected, but there is no password so if you want to change anything just unprotect it.
G28: 4. I've calculated VAT seperately on Gas and Electricity which is how it's done by a few companies though I'm fairly sure that used to be illegal.

Sheet Sheet2
A1: Use the spin controls to adjust your estimates of gas and electricity usage for each month (or just enter the amounts in the boxes), in rows 24 and 28 below. The chart will change and you can scroll down to see the costs with the year's totals on the right.
D23: Jan | E23: Feb | F23: Mar | G23: Apr | H23: May | I23: Jun | J23: Jul | K23: Aug | L23: Sep | M23: Oct | N23: Nov | O23: Dec | P23: Totals
A24: Gas kWh Estimates : | D24: 900 | E24: 900 | F24: 900 | G24: 900 | H24: 900 | I24: 900 | J24: 900 | K24: 900 | L24: 900 | M24: 900 | N24: 900 | O24: 900 | P24: =SUM(D24:O24) -> 10800
A28: Electricity kWh Estimates: | D28: 150 | E28: 150 | F28: 150 | G28: 150 | H28: 150 | I28: 150 | J28: 150 | K28: 150 | L28: 150 | M28: 150 | N28: 150 | O28: 150 | P28: =SUM(D28:O28) -> 1800
P32: Year's Cost
A33: Tariff A inc. SC and VAT: | D33: =D$24*GRA/100+D$28*ERA/100+(GSCA+ESCA)*0.31+(D$24*GRA/100+D$28*ERA/100+(GSCA+ESCA)*0.31)*VATRate -> 80.08833 | E33: =E$24*GRA/100+E$28*ERA/100+(GSCA+ESCA)*0.28+(E$24*GRA/100+E$28*ERA/100+(GSCA+ESCA)*0.28)*VATRate -> 78.87999 | F33: 80.08833 | G33: =G$24*GRA/100+G$28*ERA/100+(GSCA+ESCA)*0.3+(G$24*GRA/100+G$28*ERA/100+(GSCA+ESCA)*0.3)*VATRate -> 79.68555 | H33: 80.08833 | I33: =I$24*GRA/100+I$28*ERA/100+(GSCA+ESCA)*0.3+(I$24*GRA/100+I$28*ERA/100+(GSCA+ESCA)*0.3)*VATRate -> 79.68555 | J33: 80.08833 | K33: 80.08833 | L33: =L$24*GRA/100+L$28*ERA/100+(GSCA+ESCA)*0.3+(L$24*GRA/100+L$28*ERA/100+(GSCA+ESCA)*0.3)*VATRate -> 79.68555 | M33: 80.08833 | N33: =N$24*GRA/100+N$28*ERA/100+(GSCA+ESCA)*0.3+(N$24*GRA/100+N$28*ERA/100+(GSCA+ESCA)*0.3)*VATRate -> 79.68555 | O33: 80.08833 | P33: =SUM(D33:O33) -> 958.2405
A34: Tariff A Gas: | D34: =D$24*GRA/100+GSCA*0.31+(D$24*GRA/100+GSCA*0.31)*VATRate -> 50.75385 | E34: =E$24*GRA/100+GSCA*0.28+(E$24*GRA/100+GSCA*0.28)*VATRate -> 49.89075 | F34: 50.75385 | G34: =G$24*GRA/100+GSCA*0.3+(G$24*GRA/100+GSCA*0.3)*VATRate -> 50.46615 | H34: 50.75385 | I34: =I$24*GRA/100+GSCA*0.3+(I$24*GRA/100+GSCA*0.3)*VATRate -> 50.46615 | J34: 50.75385 | K34: 50.75385 | L34: =L$24*GRA/100+GSCA*0.3+(L$24*GRA/100+GSCA*0.3)*VATRate -> 50.46615 | M34: 50.75385 | N34: =N$24*GRA/100+GSCA*0.3+(N$24*GRA/100+GSCA*0.3)*VATRate -> 50.46615 | O34: 50.75385 | P34: =SUM(D34:O34) -> 607.0323
A35: Tariff A Electricity: | D35: =D$28*ERA/100+ESCA*0.31+(D$28*ERA/100+ESCA*0.31)*VATRate -> 29.33448 | E35: =E$28*ERA/100+ESCA*0.28+(E$28*ERA/100+ESCA*0.28)*VATRate -> 28.98924 | F35: 29.33448 | G35: =G$28*ERA/100+ESCA*0.3+(G$28*ERA/100+ESCA*0.3)*VATRate -> 29.2194 | H35: 29.33448 | I35: =I$28*ERA/100+ESCA*0.3+(I$28*ERA/100+ESCA*0.3)*VATRate -> 29.2194 | J35: 29.33448 | K35: 29.33448 | L35: =L$28*ERA/100+ESCA*0.3+(L$28*ERA/100+ESCA*0.3)*VATRate -> 29.2194 | M35: 29.33448 | N35: =N$28*ERA/100+ESCA*0.3+(N$28*ERA/100+ESCA*0.3)*VATRate -> 29.2194 | O35: 29.33448 | P35: =SUM(D35:O35) -> 351.2082
A37: Tariff B inc. SC and VAT: | D37: =D$24*GRB/100+D$28*ERB/100+(GSCB+ESCB)*0.31+(D$24*GRB/100+D$28*ERB/100+(GSCB+ESCB)*0.31)*VATRate -> 81.40335 | E37: =E$24*GRB/100+E$28*ERB/100+(GSCB+ESCB)*0.28+(E$24*GRB/100+E$28*ERB/100+(GSCB+ESCB)*0.28)*VATRate -> 80.06775 | F37: 81.40335 | G37: =G$24*GRB/100+G$28*ERB/100+(GSCB+ESCB)*0.3+(G$24*GRB/100+G$28*ERB/100+(GSCB+ESCB)*0.3)*VATRate -> 80.95815 | H37: 81.40335 | I37: =I$24*GRB/100+I$28*ERB/100+(GSCB+ESCB)*0.3+(I$24*GRB/100+I$28*ERB/100+(GSCB+ESCB)*0.3)*VATRate -> 80.95815 | J37: 81.40335 | K37: 81.40335 | L37: =L$24*GRB/100+L$28*ERB/100+(GSCB+ESCB)*0.3+(L$24*GRB/100+L$28*ERB/100+(GSCB+ESCB)*0.3)*VATRate -> 80.95815 | M37: 81.40335 | N37: =N$24*GRB/100+N$28*ERB/100+(GSCB+ESCB)*0.3+(N$24*GRB/100+N$28*ERB/100+(GSCB+ESCB)*0.3)*VATRate -> 80.95815 | O37: 81.40335 | P37: =SUM(D37:O37) -> 973.7238
A38: Tariff B Gas: | D38: =D$24*GRB/100+GSCB*0.31+(D$24*GRB/100+GSCB*0.31)*VATRate -> 50.75385 | E38: =E$24*GRB/100+GSCB*0.28+(E$24*GRB/100+GSCB*0.28)*VATRate -> 49.89075 | F38: 50.75385 | G38: =G$24*GRB/100+GSCB*0.3+(G$24*GRB/100+GSCB*0.3)*VATRate -> 50.46615 | H38: 50.75385 | I38: =I$24*GRB/100+GSCB*0.3+(I$24*GRB/100+GSCB*0.3)*VATRate -> 50.46615 | J38: 50.75385 | K38: 50.75385 | L38: =L$24*GRB/100+GSCB*0.3+(L$24*GRB/100+GSCB*0.3)*VATRate -> 50.46615 | M38: 50.75385 | N38: =N$24*GRB/100+GSCB*0.3+(N$24*GRB/100+GSCB*0.3)*VATRate -> 50.46615 | O38: 50.75385 | P38: =SUM(D38:O38) -> 607.0323
A39: Tariff B Electricity: | D39: =D$28*ERB/100+ESCB*0.31+(D$28*ERB/100+ESCB*0.31)*VATRate -> 30.6495 | E39: =E$28*ERB/100+ESCB*0.28+(E$28*ERB/100+ESCB*0.28)*VATRate -> 30.177 | F39: 30.6495 | G39: =G$28*ERB/100+ESCB*0.3+(G$28*ERB/100+ESCB*0.3)*VATRate -> 30.492 | H39: 30.6495 | I39: =I$28*ERB/100+ESCB*0.3+(I$28*ERB/100+ESCB*0.3)*VATRate -> 30.492 | J39: 30.6495 | K39: 30.6495 | L39: =L$28*ERB/100+ESCB*0.3+(L$28*ERB/100+ESCB*0.3)*VATRate -> 30.492 | M39: 30.6495 | N39: =N$28*ERB/100+ESCB*0.3+(N$28*ERB/100+ESCB*0.3)*VATRate -> 30.492 | O39: 30.6495 | P39: =SUM(D39:O39) -> 366.6915
A41: Tariff C inc. SC and VAT: | D41: =D$24*GRC/100+D$28*ERC/100+(GSCC+ESCC)*0.31+(D$24*GRC/100+D$28*ERC/100+(GSCC+ESCC)*0.31)*VATRate -> 80.73933 | E41: =E$24*GRC/100+E$28*ERC/100+(GSCC+ESCC)*0.28+(E$24*GRC/100+E$28*ERC/100+(GSCC+ESCC)*0.28)*VATRate -> 79.46799 | F41: 80.73933 | G41: =G$24*GRC/100+G$28*ERC/100+(GSCC+ESCC)*0.3+(G$24*GRC/100+G$28*ERC/100+(GSCC+ESCC)*0.3)*VATRate -> 80.31555 | H41: 80.73933 | I41: =I$24*GRC/100+I$28*ERC/100+(GSCC+ESCC)*0.3+(I$24*GRC/100+I$28*ERC/100+(GSCC+ESCC)*0.3)*VATRate -> 80.31555 | J41: 80.73933 | K41: 80.73933 | L41: =L$24*GRC/100+L$28*ERC/100+(GSCC+ESCC)*0.3+(L$24*GRC/100+L$28*ERC/100+(GSCC+ESCC)*0.3)*VATRate -> 80.31555 | M41: 80.73933 | N41: =N$24*GRC/100+N$28*ERC/100+(GSCC+ESCC)*0.3+(N$24*GRC/100+N$28*ERC/100+(GSCC+ESCC)*0.3)*VATRate -> 80.31555 | O41: 80.73933 | P41: =SUM(D41:O41) -> 965.9055
A42: Tariff C Gas: | D42: =D$24*GRC/100+GSCC*0.31+(D$24*GRC/100+GSCC*0.31)*VATRate -> 50.75385 | E42: =E$24*GRC/100+GSCC*0.28+(E$24*GRC/100+GSCC*0.28)*VATRate -> 49.89075 | F42: 50.75385 | G42: =G$24*GRC/100+GSCC*0.3+(G$24*GRC/100+GSCC*0.3)*VATRate -> 50.46615 | H42: 50.75385 | I42: =I$24*GRC/100+GSCC*0.3+(I$24*GRC/100+GSCC*0.3)*VATRate -> 50.46615 | J42: 50.75385 | K42: 50.75385 | L42: =L$24*GRC/100+GSCC*0.3+(L$24*GRC/100+GSCC*0.3)*VATRate -> 50.46615 | M42: 50.75385 | N42: =N$24*GRC/100+GSCC*0.3+(N$24*GRC/100+GSCC*0.3)*VATRate -> 50.46615 | O42: 50.75385 | P42: =SUM(D42:O42) -> 607.0323
A43: Tariff C Electricity: | D43: =D$28*ERC/100+ESCC*0.31+(D$28*ERC/100+ESCC*0.31)*VATRate -> 29.98548 | E43: =E$28*ERC/100+ESCC*0.28+(E$28*ERC/100+ESCC*0.28)*VATRate -> 29.57724 | F43: 29.98548 | G43: =G$28*ERC/100+ESCC*0.3+(G$28*ERC/100+ESCC*0.3)*VATRate -> 29.8494 | H43: 29.98548 | I43: =I$28*ERC/100+ESCC*0.3+(I$28*ERC/100+ESCC*0.3)*VATRate -> 29.8494 | J43: 29.98548 | K43: 29.98548 | L43: =L$28*ERC/100+ESCC*0.3+(L$28*ERC/100+ESCC*0.3)*VATRate -> 29.8494 | M43: 29.98548 | N43: =N$28*ERC/100+ESCC*0.3+(N$28*ERC/100+ESCC*0.3)*VATRate -> 29.8494 | O43: 29.98548 | P43: =SUM(D43:O43) -> 358.8732
A45: Tariff D inc. SC and VAT: | D45: =D$24*GRD/100+D$28*ERD/100+(GSCD+ESCD)*0.31+(D$24*GRD/100+D$28*ERD/100+(GSCD+ESCD)*0.31)*VATRate -> 81.06483 | E45: =E$24*GRD/100+E$28*ERD/100+(GSCD+ESCD)*0.28+(E$24*GRD/100+E$28*ERD/100+(GSCD+ESCD)*0.28)*VATRate -> 79.76199 | F45: 81.06483 | G45: =G$24*GRD/100+G$28*ERD/100+(GSCD+ESCD)*0.3+(G$24*GRD/100+G$28*ERD/100+(GSCD+ESCD)*0.3)*VATRate -> 80.63055 | H45: 81.06483 | I45: =I$24*GRD/100+I$28*ERD/100+(GSCD+ESCD)*0.3+(I$24*GRD/100+I$28*ERD/100+(GSCD+ESCD)*0.3)*VATRate -> 80.63055 | J45: 81.06483 | K45: 81.06483 | L45: =L$24*GRD/100+L$28*ERD/100+(GSCD+ESCD)*0.3+(L$24*GRD/100+L$28*ERD/100+(GSCD+ESCD)*0.3)*VATRate -> 80.63055 | M45: 81.06483 | N45: =N$24*GRD/100+N$28*ERD/100+(GSCD+ESCD)*0.3+(N$24*GRD/100+N$28*ERD/100+(GSCD+ESCD)*0.3)*VATRate -> 80.63055 | O45: 81.06483 | P45: =SUM(D45:O45) -> 969.738
A46: Tariff D Gas: | D46: =D$24*GRD/100+GSCD*0.31+(D$24*GRD/100+GSCD*0.31)*VATRate -> 50.75385 | E46: =E$24*GRD/100+GSCD*0.28+(E$24*GRD/100+GSCD*0.28)*VATRate -> 49.89075 | F46: 50.75385 | G46: =G$24*GRD/100+GSCD*0.3+(G$24*GRD/100+GSCD*0.3)*VATRate -> 50.46615 | H46: 50.75385 | I46: =I$24*GRD/100+GSCD*0.3+(I$24*GRD/100+GSCD*0.3)*VATRate -> 50.46615 | J46: 50.75385 | K46: 50.75385 | L46: =L$24*GRD/100+GSCD*0.3+(L$24*GRD/100+GSCD*0.3)*VATRate -> 50.46615 | M46: 50.75385 | N46: =N$24*GRD/100+GSCD*0.3+(N$24*GRD/100+GSCD*0.3)*VATRate -> 50.46615 | O46: 50.75385 | P46: =SUM(D46:O46) -> 607.0323
A47: Tariff D Electricity: | D47: =D$28*ERD/100+ESCD*0.31+(D$28*ERD/100+ESCD*0.31)*VATRate -> 30.31098 | E47: =E$28*ERD/100+ESCD*0.28+(E$28*ERD/100+ESCD*0.28)*VATRate -> 29.87124 | F47: 30.31098 | G47: =G$28*ERD/100+ESCD*0.3+(G$28*ERD/100+ESCD*0.3)*VATRate -> 30.1644 | H47: 30.31098 | I47: =I$28*ERD/100+ESCD*0.3+(I$28*ERD/100+ESCD*0.3)*VATRate -> 30.1644 | J47: 30.31098 | K47: 30.31098 | L47: =L$28*ERD/100+ESCD*0.3+(L$28*ERD/100+ESCD*0.3)*VATRate -> 30.1644 | M47: 30.31098 | N47: =N$28*ERD/100+ESCD*0.3+(N$28*ERD/100+ESCD*0.3)*VATRate -> 30.1644 | O47: 30.31098 | P47: =SUM(D47:O47) -> 362.7057
